fUSD/lending_fUSD_20250513
["ID","MTS","AMOUNT","RATE_DAILY","PERIOD"]
[360885334,1747102240507,-400.0,0.00013741,2]
[360885335,1747102240516,-400.0,0.00013741,2]
[360885336,1747102240525,-511.75929152,0.00013741,2]
[360885337,1747102240539,-400.0,0.00013741,2]
[360885338,1747102240548,-404.6568629,0.00013741,2]
[360885339,1747102240558,-454.82855155,0.00013741,2]
[360885340,1747102240568,-405.63578755,0.00013741,2]
[360885341,1747102240578,-402.02888748,0.00013741,2]
[360885342,1747102240587,-400.0,0.00013741,2]
[360885343,1747102240595,-400.0,0.00013741,2]
[360885344,1747102240605,-423.81,0.00013741,2]
[360885345,1747102240614,-400.0,0.00013741,2]
[360885346,1747102240624,-400.0,0.00013741,2]
[360885347,1747102240634,-400.0,0.00013741,2]
[360885348,1747102240644,-400.0,0.00013741,2]
[360885349,1747102240654,-400.0,0.00013741,2]
[360885350,1747102240663,-400.0,0.00013741,2]
[360885351,1747102240672,-400.0,0.00013741,2]
[360885352,1747102240681,-400.0,0.00013741,2]
[360885353,1747102240692,-497.42130712,0.00013741,2]
[360885354,1747102240701,-400.0,0.00013741,2]
[360885355,1747102240710,-400.0,0.00013741,2]
[360885356,1747102240720,-423.94053424,0.00013741,2]
[360885357,1747102240730,-439.75790101,0.00013741,2]
[360885358,1747102240739,-400.0,0.00013741,2]
[360885359,1747102240748,-400.0,0.00013741,2]
[360885360,1747102240757,-400.0,0.00013741,2]
[360885361,1747102240766,-400.0,0.00013741,2]
[360885362,1747102240775,-427.59310533,0.00013741,2]
[360885363,1747102240788,-400.0,0.00013741,2]
[360885364,1747102240797,-400.0,0.00013741,2]
[360885365,1747102240806,-400.0,0.00013741,2]
[360885366,1747102240816,-400.0,0.00013741,2]
[360885367,1747102240825,-407.69631696,0.00013741,2]
[360885368,1747102240835,-400.0,0.00013741,2]
[360885369,1747102240845,-400.0,0.00013741,2]
[360885370,1747102240856,-400.0,0.00013741,2]
[360885371,1747102240865,-400.0,0.00013741,2]
[360885372,1747102240875,-400.0,0.00013741,2]
[360885373,1747102240884,-435.41,0.00013741,2]
[360885374,1747102240894,-589.19,0.00013741,2]
[360885375,1747102240904,-508.6,0.00013741,2]
[360885376,1747102240914,-490.51144098,0.00013741,2]
[360885377,1747102240924,-400.0,0.00013741,2]
[360885378,1747102240933,-400.0,0.00013741,2]
[360885379,1747102240943,-400.0,0.00013741,2]
[360885380,1747102240952,-400.0,0.00013741,2]
[360885381,1747102240962,-400.0,0.00013741,2]
[360885382,1747102240972,-400.0,0.00013741,2]
[360885383,1747102240981,-977.24,0.00013741,2]
[360885384,1747102240989,-400.0,0.00013741,2]
[360885385,1747102240999,-400.0,0.00013741,2]
[360885386,1747102241007,-400.0,0.00013741,2]
[360885387,1747102241017,-483.11824318,0.00013741,2]
[360885388,1747102241027,-545.0,0.00013741,2]
[360885389,1747102241041,-400.0,0.00013741,2]
[360885390,1747102241052,-400.0,0.00013741,2]
[360885391,1747102241062,-400.0,0.00013741,2]
[360885392,1747102241071,-692.64,0.00013741,2]
[360885393,1747102241082,-400.0,0.00013741,2]
[360885394,1747102241092,-261.007894,0.00013741,2]
[360885395,1747102241101,-453.41,0.00013741,2]
[360885396,1747102241110,-733.97,0.00013741,2]
[360885397,1747102241121,-1234.65,0.00013741,2]
[360885398,1747102241131,-400.0,0.00013741,2]
[360885399,1747102241140,-400.0,0.00013741,2]
[360885400,1747102241149,-400.0,0.00013741,2]
[360885401,1747102241160,-400.0,0.00013741,2]
[360885402,1747102241169,-400.0,0.00013741,2]
[360885403,1747102241179,-406.45,0.00013741,2]
[360885404,1747102241188,-548.07759027,0.00013741,2]
[360885405,1747102241198,-400.0,0.00013741,2]
[360885406,1747102241208,-400.0,0.00013741,2]
[360885407,1747102241217,-702.75,0.00013741,2]
[360885408,1747102241227,-400.0,0.00013741,2]
[360885409,1747102241236,-408.57493042,0.00013741,2]
[360885410,1747102241246,-400.0,0.00013741,2]
[360885411,1747102241256,-400.0,0.00013741,2]
[360885412,1747102241266,-400.0,0.00013741,2]
[360885413,1747102241275,-561.89,0.00013741,2]
[360885414,1747102241290,-400.0,0.00013741,2]
[360885415,1747102241300,-159.622021,0.00013741,2]
[360885416,1747102241309,-400.0,0.00013741,2]
[360885417,1747102241319,-443.60143805,0.00013741,2]
[360885418,1747102241329,-520.46943057,0.00013741,2]
[360885419,1747102241339,-516.08165574,0.00013741,2]
[360885420,1747102241350,-400.0,0.00013741,2]
[360885421,1747102241360,-400.0,0.00013741,2]
[360885422,1747102241369,-400.0,0.00013741,2]
[360885423,1747102241379,-400.0,0.00013741,2]
[360885424,1747102241389,-400.0,0.00013741,2]
[360885425,1747102241400,-401.8621898,0.00013741,2]
[360885426,1747102241410,-400.0,0.00013741,2]
[360885427,1747102241419,-400.0,0.00013741,2]
[360885428,1747102241429,-667.87,0.00013741,2]
[360885429,1747102241438,-400.0,0.00013741,2]
[360885430,1747102241448,-400.0,0.00013741,2]
[360885431,1747102241459,-519.71727539,0.00013741,2]
[360885432,1747102241469,-151.0,0.00013741,2]
[360885433,1747102241479,-668.28,0.00013741,2]
[360885434,1747102241488,-171.75665493,0.00013741,2]
[360885435,1747102241498,-215.382422,0.00013741,2]
[360885436,1747102241508,-403.69884311,0.00013741,2]
[360885437,1747102241517,-1283.95,0.00013741,2]
[360885438,1747102241527,-400.0,0.00013741,2]
[360885439,1747102241540,-455.22970218,0.00013741,2]
[360885440,1747102241550,-400.0,0.00013741,2]
[360885441,1747102241560,-400.0,0.00013741,2]
[360885442,1747102241570,-400.0,0.00013741,2]
[360885443,1747102241579,-412.2889948,0.00013741,2]
[360885444,1747102241589,-539.59523624,0.00013741,2]
[360885445,1747102241599,-487.88018524,0.00013741,2]
[360885446,1747102241608,-413.93639012,0.00013741,2]
[360885447,1747102241618,-400.0,0.00013741,2]
[360885448,1747102241627,-400.0,0.00013741,2]
[360885449,1747102241636,-152.47694188,0.00013741,2]
[360885450,1747102241646,-400.0,0.00013741,2]
[360885451,1747102241655,-400.0,0.00013741,2]
[360885452,1747102241664,-472.62906714,0.00013741,2]
[360885453,1747102241674,-400.0,0.00013741,2]
[360885454,1747102241683,-523.2,0.00013741,2]
[360885455,1747102241693,-679.2,0.00013741,2]
[360885456,1747102241703,-151.0,0.00013741,2]
[360885457,1747102241712,-1194.31,0.00013741,2]
[360885458,1747102241722,-487.90359724,0.00013741,2]
[360885459,1747102241732,-151.0,0.00013741,2]
[360885460,1747102241742,-400.9,0.00013741,2]
[360885461,1747102241752,-518.54213789,0.00013741,2]
[360885462,1747102241762,-415.19889139,0.00013741,2]
[360885463,1747102241772,-1685.91,0.00013741,2]
[360885464,1747102241786,-151.0,0.00013741,2]
[360885465,1747102241795,-400.0,0.00013741,2]
[360885466,1747102241805,-151.0,0.00013741,2]
[360885467,1747102241814,-16594.7939301,0.00013741,2]
[360885468,1747102242310,-6173.224748,0.00013741,2]
[360885469,1747102242321,-18586.7813219,0.00013741,2]
[360885470,1747102242331,-241.35874594,0.00013741,2]
[360885471,1747102242340,-400.0,0.00013741,2]
[360885472,1747102242350,-400.0,0.00013741,2]
[360885473,1747102242361,-400.0,0.00013741,2]
[360885474,1747102242371,-2501.93,0.00013741,2]
[360885475,1747102242386,-878.68,0.00013741,2]
[360885476,1747102242396,-721.64,0.00013741,2]
[360885477,1747102242406,-400.0,0.00013741,2]
[360885478,1747102242416,-456.46,0.00013741,2]
[360885479,1747102242426,-617.82,0.00013741,2]
[360885480,1747102242436,-400.0,0.00013741,2]
[360885481,1747102242445,-400.0,0.00013741,2]
[360885482,1747102242455,-327.69340575,0.00013741,2]
[360885483,1747102242465,-1012.53,0.00013741,2]
[360885484,1747102242476,-1622.29,0.00013741,2]
[360885485,1747102242485,-400.0,0.00013741,2]
[360885486,1747102242495,-400.0,0.00013741,2]
[360885487,1747102242505,-712.19,0.00013741,2]
[360885488,1747102242517,-522.95,0.00013741,2]
[360885489,1747102242526,-547.48,0.00013741,2]
[360885490,1747102242539,-547.48,0.00013741,2]
[360885491,1747102242548,-500.0,0.00013741,2]
[360885492,1747102242557,-400.0,0.00013741,2]
[360885493,1747102242567,-1344.49,0.00013741,2]
[360885494,1747102242577,-400.0,0.00013741,2]
[360885495,1747102242586,-400.0,0.00013741,2]
[360885496,1747102242596,-525.97,0.00013741,2]
[360885497,1747102242605,-400.0,0.00013741,2]
[360885498,1747102242616,-326.69838231,0.00013741,2]
[360885499,1747102242626,-400.0,0.00013741,2]
[360885500,1747102242635,-787.31,0.00013741,2]
[360885501,1747102242646,-400.0,0.00013741,2]
[360885502,1747102242656,-151.701043,0.00013741,2]
[360885503,1747102242665,-400.0,0.00013741,2]
[360885504,1747102242675,-206.26864077,0.00013741,2]
[360885505,1747102242744,-193.73135923,0.00013741,2]
[360885506,1747102242753,-297.66364077,0.00013741,2]
[360885507,1747102242776,-328.47396994,0.00013741,2]
[360885527,1747102243488,-1424.08312649,0.00013741,2]
[360885528,1747102243500,-72.5192628,0.00013741,2]
[360885530,1747102243509,-400.0,0.00013741,2]
[360885532,1747102243519,-151.0,0.00013741,2]
[360885533,1747102243529,-400.0,0.00013741,2]
[360885534,1747102243538,-154.390768,0.00013741,2]
[360885535,1747102243548,-1100.56,0.00013741,2]
[360885536,1747102243557,-400.0,0.00013741,2]
[360885537,1747102243566,-6115.21379186,0.00013742,2]
[360885555,1747102246167,-267.69551097,0.00013642,2]
[360885556,1747102246177,-400.0,0.00013741,2]
[360885557,1747102246186,-96241.01004598,0.00013742,2]
[360885558,1747102628366,317.79,0.00010377,2]
[360885559,1747102703313,150.0,0.00015,5]
[360885560,1747102753338,14609.46223276,0.00015,5]
[360885561,1747102877487,2500.0,0.00028,120]
[360885562,1747102899207,10000.0,0.00028,120]
[360885563,1747103007145,2412.87032995,0.00015,5]
[360885566,1747103189993,200.0,0.00028,120]
[360885591,1747103229427,348.0,0.00028,120]
[360885650,1747103432322,-300.0,0.0001223,2]
[360885652,1747103432332,-124.91916695,0.0001223,2]
[360885657,1747103432379,-1075.08083305,0.0001223,2]
[360885658,1747103432389,-300.0,0.0001223,2]
[360885659,1747103432398,-157.82129345,0.0001223,2]
[360885660,1747103432408,-7281.5978735,0.00012231,2]
[360885661,1747103432419,-2571.87429594,0.00012231,2]
[360885662,1747103432540,-8708.60332913,0.00012231,2]
[360885663,1747103432552,-1334.58450143,0.00012231,2]
[360885664,1747103432562,-200.0,0.00012241,2]
[360885665,1747103432572,-200.0,0.00012248,2]
[360885666,1747103432581,-130.87367178,0.00012251,2]
[360885667,1747103432593,-69.12632822,0.00012251,2]
[360885668,1747103432604,-644.11398683,0.00012251,2]
[360885669,1747103432617,-355.88601317,0.00012251,2]
[360885670,1747103432631,-195.31,0.00012255,2]
[360885671,1747103432641,-160.16,0.0001226,2]
[360885672,1747103432651,-351.44,0.00012311,2]
[360885673,1747103432662,-163.42901183,0.00012319,2]
[360885674,1747103432674,-11.19098817,0.00012319,2]
[360885675,1747103432684,-174.62,0.0001238,2]
[360885676,1747103432695,-1089.2174604,0.00012438,2]
[360885677,1747103432705,-1089.2174604,0.00012493,2]
[360885678,1747103432714,-1089.2174604,0.00012521,2]
[360885679,1747103432724,-150.0,0.00012521,2]
[360885680,1747103432734,-1089.2174604,0.00012575,2]
[360885681,1747103432743,-1089.2174604,0.0001263,2]
[360885682,1747103432753,-317.79,0.00012641,2]
[360885683,1747103432763,-1089.2174604,0.00012685,2]
[360885684,1747103432774,-1089.2174604,0.0001274,2]
[360885685,1747103432784,-1089.2174604,0.00012767,2]
[360885686,1747103432793,-842.78172863,0.00012822,2]
[360885687,1747103432805,-246.43573177,0.00012822,2]
[360885688,1747103432815,-4.61254857,0.00012837,2]
[360885689,1747103432826,-162.08745143,0.00012837,2]
[360885690,1747103432836,-1089.2174604,0.00012877,2]
[360885691,1747103432846,-150.0,0.00012877,2]
[360885692,1747103432856,-1089.2174604,0.00012932,2]
[360885693,1747103432865,-1089.2174604,0.00012986,2]
[360885694,1747103432880,-155.0,0.00013058,2]
[360885695,1747103432890,-154.46329009,0.00013058,2]
[360885696,1747103432899,-668.65185757,0.00013058,2]
[360885698,1747103432909,-151.0,0.00013058,2]
[360885700,1747103432918,-207.4,0.00013058,2]
[360885702,1747103432929,-500.0,0.0001337,2]
[360885704,1747103432939,-420.0,0.00013423,2]
[360885706,1747103432950,-483.99782047,0.0001345,2]
[360885707,1747103432959,-112.76483409,0.00013453,2]
[360885708,1747103432978,-1567.23516591,0.00013453,2]
[360885709,1747103432987,-200.0,0.00013454,2]
[360885710,1747103432996,-200.0,0.00013475,2]
[360885711,1747103433006,-693.3919763,0.00013606,2]
[360885712,1747103433016,-6787.9368,0.00013639,2]
[360885714,1747103433025,-4920.9595,0.00013639,2]
[360885716,1747103433036,-2500.0,0.00013639,2]
[360885718,1747103433046,-3494.47655779,0.00013639,2]
[360885724,1747103438362,-500.0,0.00013068,2]
[360885725,1747103438372,-507.8657815,0.00013639,2]
[360885726,1747103438387,-1629.83238255,0.00013639,2]
[360885727,1747103438417,-3168.9648234,0.00013639,2]
[360885728,1747103438427,-4228.09399629,0.00013639,2]
[360885729,1747103438437,-157.4520327,0.0001364,2]
[360885730,1747103438450,-172.24716139,0.00013641,2]
[360885731,1747103438459,-2154.54844749,0.00013641,2]
[360885732,1747103438792,-424.538785,0.00013641,2]
[360885733,1747103438804,-18114.52796751,0.00013641,2]
[360885735,1747103438815,-165.68994279,0.00013644,2]
[360885736,1747103438824,-250.0,0.00013661,2]
[360885737,1747103438834,-385.2631641,0.00013681,2]
[360885738,1747103438844,-541.52441251,0.00013695,2]
[360885739,1747103438853,-818.01165508,0.00013698,2]
[360885740,1747103438864,-120.21265801,0.00013699,2]
[360885741,1747103438903,-30.78734199,0.00013699,2]
[360885742,1747103438913,-200.0,0.00013699,2]
[360885743,1747103438923,-221.27,0.00013699,2]
[360885744,1747103438932,-234.22965087,0.00013699,2]
[360885745,1747103438942,-500.0,0.00013699,2]
[360885746,1747103438951,-299.7681233,0.00013699,2]
[360885747,1747103438969,-200.2318767,0.00013699,2]
[360885748,1747103438979,-63.4681236,0.00013699,2]
[360885749,1747103438990,-436.5318764,0.00013699,2]
[360885750,1747103438999,-236.64880385,0.00013699,2]
[360885751,1747103439009,-305.21931975,0.00013699,2]
[360885752,1747103439021,-194.78068025,0.00013699,2]
[360885753,1747103439031,-500.0,0.00013699,2]
[360885754,1747103439040,-500.0,0.00013699,2]
[360885755,1747103439049,-51.06868352,0.00013699,2]
[360885756,1747103439060,-448.93131648,0.00013699,2]
[360885757,1747103439069,-500.0,0.00013699,2]
[360885758,1747103439078,-250.0,0.00013699,2]
[360885759,1747103439087,-3791.65600169,0.0001373,2]
[360885788,1747103440396,-436.43799455,0.0001373,2]
[360885789,1747103440406,-8801.13954518,0.0001373,2]
[360885790,1747103440416,-408.09324762,0.00013738,2]
[360885791,1747103440425,-370.096433,0.00013738,2]
[360885792,1747103440438,-3354.028395,0.00013738,2]
[360885793,1747103440448,-275.24998616,0.00013738,2]
[360885794,1747103440459,-400.0,0.00013738,2]
[360885795,1747103440474,-177.799788,0.00013738,2]
[360885796,1747103440486,-2193.63,0.00013738,2]
[360885797,1747103440496,-400.0,0.00013738,2]
[360885798,1747103440507,-400.0,0.00013738,2]
[360885799,1747103440519,-400.0,0.00013738,2]
[360885800,1747103440529,-400.0,0.00013738,2]
[360885801,1747103440539,-400.0,0.00013738,2]
[360885802,1747103440549,-400.0,0.00013738,2]
[360885803,1747103440559,-598.31,0.00013738,2]
[360885804,1747103440569,-400.0,0.00013738,2]
[360885805,1747103440579,-400.0,0.00013738,2]
[360885806,1747103440589,-712.88,0.00013738,2]
[360885807,1747103440599,-400.0,0.00013738,2]
[360885808,1747103440609,-400.0,0.00013738,2]
[360885809,1747103440619,-400.0,0.00013738,2]
[360885810,1747103440632,-400.0,0.00013738,2]
[360885811,1747103440642,-452.0047768,0.00013738,2]
[360885812,1747103440653,-400.0,0.00013738,2]
[360885813,1747103440663,-400.0,0.00013738,2]
[360885814,1747103440673,-188.91797233,0.00013738,2]
[360885815,1747103440683,-400.0,0.00013738,2]
[360885816,1747103440693,-400.0,0.00013738,2]
[360885817,1747103440704,-640.04,0.00013738,2]
[360885818,1747103440714,-400.0,0.00013738,2]
[360885819,1747103440725,-400.0,0.00013738,2]
[360885820,1747103440735,-400.0,0.00013738,2]
[360885821,1747103440746,-163.57848849,0.00013738,2]
[360885822,1747103440756,-408.34,0.00013738,2]
[360885823,1747103440765,-1823.31,0.00013738,2]
[360885824,1747103440776,-400.0,0.00013738,2]
[360885825,1747103440787,-360.00157683,0.00013738,2]
[360885826,1747103440798,-1339.5,0.00013738,2]
[360885827,1747103440809,-531.26,0.00013738,2]
[360885828,1747103440822,-732.52,0.00013738,2]
[360885829,1747103440832,-400.0,0.00013738,2]
[360885830,1747103440842,-229.62709989,0.00013738,2]
[360885831,1747103440853,-731.59,0.00013738,2]
[360885832,1747103440863,-501.86,0.00013738,2]
[360885833,1747103440873,-400.0,0.00013738,2]
[360885834,1747103440886,-1194.54,0.00013738,2]
[360885835,1747103440897,-235.88038585,0.00013738,2]
[360885836,1747103440907,-400.0,0.00013738,2]
[360885837,1747103440922,-400.0,0.00013738,2]
[360885838,1747103440932,-400.0,0.00013738,2]
[360885839,1747103440942,-400.0,0.00013738,2]
[360885840,1747103440951,-754.5,0.00013738,2]
[360885841,1747103440961,-400.0,0.00013738,2]
[360885842,1747103440971,-400.0,0.00013738,2]
[360885843,1747103440982,-400.0,0.00013738,2]
[360885844,1747103440993,-502.99141604,0.00013738,2]
[360885845,1747103441003,-467.12276674,0.00013738,2]
[360885846,1747103441013,-405.27450894,0.00013738,2]
[360885847,1747103441023,-400.0,0.00013738,2]
[360885848,1747103441034,-400.0,0.00013738,2]
[360885849,1747103441044,-921.32,0.00013738,2]
[360885850,1747103441054,-400.0,0.00013738,2]
[360885851,1747103441065,-400.0,0.00013738,2]
[360885852,1747103441076,-526.6,0.00013738,2]
[360885853,1747103441086,-400.0,0.00013738,2]
[360885854,1747103441097,-402.74868447,0.00013738,2]
[360885855,1747103441106,-400.0,0.00013738,2]
[360885856,1747103441116,-400.0,0.00013738,2]
[360885857,1747103441128,-977.15,0.00013738,2]
[360885858,1747103441141,-400.0,0.00013738,2]
[360885859,1747103441152,-400.0,0.00013738,2]
[360885860,1747103441163,-400.0,0.00013738,2]
[360885861,1747103441173,-189.11657805,0.00013739,2]
[360885862,1747103441183,-36910.24988567,0.00013739,2]
[360885863,1747103441235,-3443.23856597,0.00013739,2]
[360885864,1747103441253,-1282.60787565,0.00013739,2]
[360885865,1747103441265,-50732.7791015,0.00013739,2]
[360885866,1747103441277,-33878.03712389,0.00013739,2]
[360885867,1747103441293,-2419.78327386,0.00013739,2]
[360885896,1747103443478,-400.0,0.00013738,2]
[360885898,1747103443489,-400.0,0.00013738,2]
[360885900,1747103443499,-199.6752,0.00013739,2]
[360885914,1747103443652,-2327.29573712,0.00013739,2]
[360885915,1747103443665,-256875.60657323,0.00013739,2]
[360885916,1747103443675,-401.84276697,0.00013739,2]
[360885917,1747103443685,-400.0,0.00013739,2]
[360885918,1747103443694,-400.0,0.00013739,2]
[360885919,1747103443704,-333.38923737,0.00013739,2]
[360885920,1747103443713,-400.0,0.00013739,2]
[360885921,1747103443723,-400.0,0.00013739,2]
[360885922,1747103443733,-400.0,0.00013739,2]
[360885923,1747103443743,-460.09,0.00013739,2]
[360885924,1747103443752,-400.0,0.00013739,2]
[360885925,1747103443762,-400.0,0.00013739,2]
[360885926,1747103443772,-400.0,0.00013739,2]
[360885927,1747103443781,-400.0,0.00013739,2]
[360885928,1747103443791,-400.0,0.00013739,2]
[360885929,1747103443802,-195.64856613,0.00013739,2]
[360885930,1747103443812,-400.0,0.00013739,2]
[360885931,1747103443821,-400.0,0.00013739,2]
[360885932,1747103443831,-160.04280143,0.00013739,2]
[360885933,1747103443841,-400.0,0.00013739,2]
[360885934,1747103443850,-400.0,0.00013739,2]
[360885935,1747103443859,-427.35203941,0.00013739,2]
[360885936,1747103443868,-400.0,0.00013739,2]
[360885937,1747103443878,-506.72146993,0.00013739,2]
[360885938,1747103443893,-400.0,0.00013739,2]
[360885939,1747103443902,-400.0,0.00013739,2]
[360885940,1747103443912,-400.0,0.00013739,2]
[360885941,1747103443922,-400.0,0.00013739,2]
[360885942,1747103443932,-400.0,0.00013739,2]
[360885943,1747103443942,-400.0,0.00013739,2]
[360885944,1747103443951,-400.0,0.00013739,2]
[360885945,1747103443960,-400.0,0.00013739,2]
[360885946,1747103443970,-400.0,0.00013739,2]
[360885947,1747103443979,-400.0,0.00013739,2]
[360885948,1747103443989,-400.0,0.00013739,2]
[360885949,1747103443998,-400.0,0.00013739,2]
[360885950,1747103444008,-400.0,0.00013739,2]
[360885951,1747103444018,-400.0,0.00013739,2]
[360885952,1747103444027,-400.0,0.00013739,2]
[360885954,1747103444036,-400.0,0.00013739,2]
[360885956,1747103444046,-228.87424418,0.00013739,2]
[360885958,1747103444055,-355.71788887,0.00013739,2]
[360885960,1747103444066,-400.0,0.00013739,2]
[360885963,1747103444076,-400.0,0.00013739,2]
[360885965,1747103444086,-400.0,0.00013739,2]
[360885967,1747103444096,-400.0,0.00013739,2]
[360885969,1747103444105,-400.0,0.00013739,2]
[360885971,1747103444114,-151.0,0.00013739,2]
[360885972,1747103444123,-400.0,0.00013739,2]
[360885973,1747103444135,-202.617755,0.00013739,2]
[360885974,1747103444145,-151.0,0.00013739,2]
[360885975,1747103444154,-400.0,0.00013739,2]
[360885976,1747103444164,-202.617755,0.00013739,2]
[360885977,1747103444173,-151.0,0.00013739,2]
[360885978,1747103444183,-174253.6763333,0.00013739,2]
[360885979,1747103444192,-400.0,0.00013739,2]
[360885980,1747103444202,-400.0,0.00013739,2]
[360885981,1747103444211,-400.0,0.00013739,2]
[360885982,1747103444222,-440.85,0.00013739,2]
[360885983,1747103444231,-400.0,0.00013739,2]
[360885984,1747103444241,-151.0,0.00013739,2]
[360885985,1747103444250,-400.0,0.00013739,2]
[360885986,1747103444260,-151.0,0.00013739,2]
[360885987,1747103444270,-8582.8849676,0.00013739,2]
[360885988,1747103444280,-400.0,0.00013739,2]
[360885989,1747103444290,-400.0,0.00013739,2]
[360885990,1747103444299,-400.0,0.00013739,2]
[360885991,1747103444308,-400.0,0.00013739,2]
[360885992,1747103444318,-400.0,0.00013739,2]
[360885993,1747103444328,-909.112774,0.00013739,2]
[360885994,1747103444337,-151.0,0.00013739,2]
[360885995,1747103444346,-151.0,0.00013739,2]
[360885996,1747103444356,-909.112774,0.00013739,2]
[360885997,1747103444365,-151.0,0.00013739,2]
[360885998,1747103444375,-400.0,0.00013739,2]
[360885999,1747103444388,-400.0,0.00013739,2]
[360886000,1747103444397,-1554.69,0.00013739,2]
[360886001,1747103444406,-446.11,0.00013739,2]
[360886002,1747103444415,-400.0,0.00013739,2]
[360886003,1747103444426,-400.0,0.00013739,2]
[360886004,1747103444436,-400.0,0.00013739,2]
[360886005,1747103444448,-411.80945909,0.00013739,2]
[360886006,1747103444458,-400.0,0.00013739,2]
[360886007,1747103444468,-400.0,0.00013739,2]
[360886008,1747103444478,-400.0,0.00013739,2]
[360886009,1747103444489,-400.0,0.00013739,2]
[360886010,1747103444498,-151.0,0.00013739,2]
[360886011,1747103444509,-151.0,0.00013739,2]
[360886012,1747103444520,-371.6312205,0.00013739,2]
[360886013,1747103444530,-1219.08,0.00013739,2]
[360886014,1747103444540,-400.0,0.00013739,2]
[360886015,1747103444549,-663.78,0.00013739,2]
[360886016,1747103444559,-417.27,0.00013739,2]
[360886017,1747103444569,-400.0,0.00013739,2]
[360886018,1747103444578,-151.0,0.00013739,2]
[360886019,1747103444588,-151.0,0.00013739,2]
[360886020,1747103444597,-1298.14,0.00013739,2]
[360886021,1747103444607,-703.39,0.00013739,2]
[360886022,1747103444617,-607.35,0.00013739,2]
[360886023,1747103444626,-773.47,0.00013739,2]
[360886024,1747103444640,-400.0,0.00013739,2]
[360886025,1747103444650,-400.0,0.00013739,2]
[360886026,1747103444660,-400.0,0.00013739,2]
[360886027,1747103444670,-5140.7634896,0.00013739,2]
[360886028,1747103444679,-400.0,0.00013739,2]
[360886029,1747103444689,-152.259234,0.00013739,2]
[360886030,1747103444698,-400.0,0.00013739,2]
[360886031,1747103444708,-170.195493,0.00013739,2]
[360886032,1747103444717,-603.92,0.00013739,2]
[360886033,1747103444727,-170.195493,0.00013739,2]
[360886034,1747103444737,-400.0,0.00013739,2]
[360886035,1747103444746,-170.195493,0.00013739,2]
[360886036,1747103444756,-170.195493,0.00013739,2]
[360886037,1747103444766,-1347.84,0.00013739,2]
[360886038,1747103444775,-151.0,0.00013739,2]
[360886039,1747103444784,-400.0,0.00013739,2]
[360886040,1747103444794,-151.0,0.00013739,2]
[360886041,1747103444803,-400.0,0.00013739,2]
[360886042,1747103444812,-640.44,0.00013739,2]
[360886043,1747103444822,-601.4,0.00013739,2]
[360886044,1747103444832,-400.0,0.00013739,2]
[360886045,1747103444841,-400.0,0.00013739,2]
[360886046,1747103444850,-157.105634,0.00013739,2]
[360886047,1747103444860,-434.2,0.00013739,2]
[360886048,1747103444869,-400.0,0.00013739,2]
[360886049,1747103444878,-2522.11,0.00013739,2]
[360886050,1747103444892,-400.0,0.00013739,2]
[360886051,1747103444902,-44549.15,0.00013739,2]
[360886052,1747103444912,-151.0,0.00013739,2]
[360886053,1747103444922,-644.0478239,0.00013739,2]
[360886054,1747103444931,-400.0,0.00013739,2]
[360886055,1747103444940,-691.58,0.00013739,2]